{"text_format":"1","workbook":"xlsx","n_sheets":1,"sheets":["Tabella A"],"not_rendered":{"charts":0,"images":0,"macros":0,"external_links":0,"defined_names":2,"comments":0,"pivot_tables":0},"unopened":[],"bounds":{"document_bytes":16777216,"sheet_cells":100000,"rows_first":2000,"rows_last":500,"rows_between":2000,"halvings":0,"cell_chars":16384,"cell_head_chars":4096},"cells_cut":0,"cells_raw":0,"read":"whole","date_system":"1900"}

{"sheet":"Tabella A","index":0,"n_rows":90,"n_cols":6,"rows_kept":90,"cut":false,"hidden":false,"merged":[[3,0,3,5],[4,0,4,5],[5,0,5,5],[6,0,6,5],[8,0,8,5],[18,0,18,5],[19,0,19,5],[20,0,20,5],[21,0,21,5],[23,0,23,5],[24,0,24,5],[25,0,25,5],[26,0,26,5],[27,0,27,5],[28,0,28,5],[29,0,29,5],[30,0,30,2],[81,0,81,5],[84,0,84,5],[89,0,89,5]]}
[]
[]
[]
["PROCEDURA NEGOZIATA FINALIZZATA ALLA STIPULA DI UN ACCORDO QUADRO"]
["PER L’AFFIDAMENTO BIENNALE PER LA FORNITURA DI FILTRI"]
["NUOVI ORIGINALI E/O EQUIVALENTI PER AUTOBUS DI APAM ESERCIZIO SPA"]
["- LOTTO 3 – ALTRI FILTRI DIVERSI (CIG 86989096CB)"]
[]
["DICHIARAZIONE DI OFFERTA ECONOMICA"]
[]
["Il sottoscritto"]
["Cod. Fisc.                                                         Nato a ",null,null,null,null,"Prov."]
["il",null,"                       in qualità di        legale rappresentante"]
[null,null,"                                                    procuratore del legale rappresentante (allegare copia procura)"]
["dell'operatore economico"]
["con sede legale in via",null,null,null,null,"    N."]
["CAP",null,"              Località",null,null,"Prov."]
[]
["in nome e per conto dello stesso e consapevole, ai sensi e per gli effetti dell’art. 76 DPR 445/2000, della responsabilità e delle conseguenze civili e penali previste in caso di dichiarazioni mendaci e/o formazione od uso di atti falsi,"]
["In riferimento alla procedura negoziata finalizzata alla stipula di un accordo quadro per l’affidamento biennale per la fornitura di altri filtri diversi originali nuovi e/o equivalenti per autobus di Apam Esercizio Spa (Lotto 3 – CIG 86989096CB)"]
[]
["DICHIARA SOTTO LA PROPRIA RESPONSABILITÀ"]
[]
["a) di essere a conoscenza che l'importo massimo dell’appalto è fissato in € 50.000,00 (euro cinquantamila/00) + IVA;"]
["b) di essere a conoscenza che qualora, durante il periodo contrattuale, non sia richiesta alcuna prestazione al Fornitore, lo stesso non ha diritto ad avanzare richieste di compensi di alcun titolo;"]
["c) di essere a conoscenza che la stipula dell’Accordo Quadro, non essendo fonte di immediata obbligazione tra Apam e il Fornitore, giacché rappresenta il vincolo che disciplina le modalità di affidamento degli appalti, demanda ai successivi Ordini di Acquisto l’approvvigionamento delle forniture;"]
["d) di essere a conoscenza che l’Accordo Quadro non è uno strumento di natura negoziale che obbliga le parti ad inserire nei futuri Ordini di Acquisto, quanto in esso pattuito senza che ne sorgano immediatamente legami di diritto-obbligo;"]
["e) di essere a conoscenza che viene demandato ai successivi Ordini di Acquisto stabilire le quantità e le tipologie delle forniture, le condizioni, i prezzi unitari, le specifiche tecniche, nonché i tempi ed i luoghi di consegna, da rendicontare fino al raggiungimento dell’importo previsto nel singolo Ordine di Acquisto."]
["OFFRE"]
["i seguenti prezzi unitari, che resteranno invariabili durante il periodo contrattuale:"]
["ALTRI FILTRI DIVERSI"]
["POS.","CODICE ART. ","DESCRIZIONE","QUANTITÀ PRESUNTA  BIENNALE  (x)","PREZZO UNITARIO NETTO (y)","PREZZO TOTALE BIENNALE\n(x * y)"]
[1,"0002992662","FILT.DECA.GAS.MYWA+CROS+CITELI+CITYC-H215WK-WK950/19-FN0323V",30]
[{"$f":"(A33+1)","v":2},"0002995964","FILTR.ABIT.URBANW.VET.785-AMADIO M5305-774101-0220018-CU4594",13]
[{"$f":"(A34+1)","v":3},"0042542589","FILTR. ESSIC. IVECO 491 CITYCLASSVE VETT.762  HENGTS – T350W",9]
[{"$f":"(A35+1)","v":4},"0008341969","FILT. DEIDRAT.MERCEDES.+SCUOLABUS CACCIA 700075 -H14-001-057",10]
[{"$f":"(A36+1)","v":5},"0042553548","FILTR. ADBLUE CROSSWAY  E101UD178- F00BH40230-42562233-U620/2YKIT",106]
[{"$f":"(A37+1)","v":6},"0042551392","FILTRO METALLICO METANO CITELIS METANO VETT.785",17]
[{"$f":"(A38+1)","v":7},"0093826924","FILTRO METANO CITELIS METANO VETT.785",22]
[{"$f":"(A39+1)","v":8},"0500339085","FILTRO ARIA TURB. MYW.   LA0018-50014004-E602L-F026400307",80]
[{"$f":"(A40+1)","v":9},"0500083187","FILTRO CAMBIO CROSSWAY E6 VETT.831",20]
[{"$f":"(A41+1)","v":10},"0500383043","GUARN.FILTRO SFIATO MOTORE ex 0002996234 -1.030.205",33]
[{"$f":"(A42+1)","v":11},"0503138609","FILTRO EVAPORATORE CROSSWAY VETT.661",87]
[{"$f":"(A43+1)","v":12},"0503139396","FILTRO ARIA IMP. ADBLUE/UREA  CROSSWAY+CITELIS  C811",12," "]
[{"$f":"(A44+1)","v":13},"0504086268","FILTR. SEPAR. CROSSW.+AVANCITY  H7091WK10",30]
[{"$f":"(A45+1)","v":14},"0504209107","FILTRO SFIATO MOTORE CURSOR  504153481",32]
[{"$f":"(A46+1)","v":15},"0750131003","FILTR. CAMBIO 4HP 500+INTEG. H710/1X – 4139298038  - E39HD119",96]
[{"$f":"(A47+1)","v":16},"1101892B","FILTRO ANTIP. LUNGO CROSSW.  - PAS0032EG- E2942LI",140]
[{"$f":"(A48+1)","v":17},"14002499","FILTRO ANTIPOLLINE MERC. CITO  A0018352747  -  E995LI",182]
[{"$f":"(A49+1)","v":18},"1457436033","FILTRO ADBLUE/UREA CROSSWAY E6 ",63]
[{"$f":"(A50+1)","v":19},"1487430002","FILTR. COMPRESSORE INTEGRO",30]
[{"$f":"(A51+1)","v":20},"1457434130","FILTRO OLIO VENTOLE IVECO 491 VETT.762",25]
[{"$f":"(A52+1)","v":21},"20401236","FILTR. ANTIP. CROSS.+MOOVY+EURO.  PAS0008EG  - A0018355447",20]
[{"$f":"(A53+1)","v":22},"2900100","FILTR. ACQUA P55-4744-1901776  WA940/6",48]
[{"$f":"(A54+1)","v":23},"2300582","KIT FILTRO METANO SCANIA CITYWIDE",14]
[{"$f":"(A55+1)","v":24},"2562323","FILTRO ESSICATORE SCANIA CITYWIDE MET. P951419",25]
[{"$f":"(A56+1)","v":25},"3254621500120","FILTRO ANTIPOLL.1640X150 INTEG 92572 <---***",20]
[{"$f":"(A57+1)","v":26},"36779100029","FILTRO EVAPORATORE LION'S+SCAN  (SPHEROS 11114854C) VET.837",23]
[{"$f":"(A58+1)","v":27},"3568304218","FILTR. RICIRC. ARIA MERC.  AM6105",20]
[{"$f":"(A59+1)","v":28},"4324100202","FILTRO ESSICATORE TB1374X MAN-1987434016  MK1779",36]
[{"$f":"(A60+1)","v":29},"4329012232","FILTR. ESSICATORE MENAR. 240 AVANCITY",31]
[{"$f":"(A61+1)","v":30},"5801619418","FILTRO ANTIPOLLINE SCU. A50/S34/VI VETT.811- 0220037-CU22029",248]
[{"$f":"(A62+1)","v":31},"7632141102","FILTRO IDRO. 220+CITEL+META. H601/4+ MERC 408   E10H02  -  1902137",66]
[{"$f":"(A63+1)","v":32},"81779100027","FILTRO AUTISTA LION'S CITY U (AURORA 436-440-0129) VETT.837",20]
[{"$f":"(A64+1)","v":33},"A0001420289","FILTRO ADBLUE MERCEDES 86142  - U581KIT",10]
[{"$f":"(A65+1)","v":34},"A0008359947","FILTRO DEIFRAT. CITO+CROS.+ORING-HANSA  HM305-135,616-FD99",211]
[{"$f":"(A66+1)","v":35},"A0018351547","FILTR. ANTIPOLLINE INTEGR.+CITARO ANT   E999LI",10]
[{"$f":"(A67+1)","v":36},"A0018357047","FILTR. ANTIPOLLINE INTEG. 3   - CU4662    E2941LI",20]
[{"$f":"(A68+1)","v":37},"A0018359247","FILTRO ANTIPOLLINE CITARO   E294LI",19]
[{"$f":"(A69+1)","v":38},"A0001805009","KIT FILTRI SC. MERCEDES C. MANTOVA",45]
[{"$f":"(A70+1)","v":39},"A0008307318","FILT. A/C  A TET. CITA K VETT.780 - AM6135- 0220012-JF1138F",20]
[{"$f":"(A71+1)","v":40},"A0018356947","FILTRO ACQUA WEBASTO CITARO  VETT.646 ex - A0028352947",20]
[{"$f":"(A72+1)","v":41},"A6288350347","FILTRO A/C AUTISTA  VETT 780 - CU91001",48]
[{"$f":"(A73+1)","v":42},"A9068300318","FILTRO ANTIPOL.SCUOLABUS SPRINTER MERC.VET.718+759-CUK3569",104]
[{"$f":"(A74+1)","v":43},"A9068350047","FILTRO DEID.TORE A/C SCU. MERC.SPRINTER VET.718-759-60652357",190]
[{"$f":"(A75+1)","v":44},"A9604770003","FILTRO DECANTORE CITARO K VETT.780 - PL420/7X",10]
[{"$f":"(A76+1)","v":45},"A008021","FILTRO PESCANTE ESTERNO   GM208",20]
[{"$f":"(A77+1)","v":46},"A6278350547","FILRO A/C MERC. INTEGRO   PAS023FA",28]
[{"$f":"(A78+1)","v":47},"AM6087","FILTRO A/C AUTISTA CITELIS-CROSSWAY  PAS0210FA",10]
[{"$f":"(A79+1)","v":48},"FD91","FILTRO DEIDRAT. INTEGRO+CROSSWAY   THERMOKING 66-9352-A6278300058",76]
[]
["Pertanto, l'importo complessivo offerto per la fornitura di altri filtri diversi per gli autobus di Apam Esercizio Spa, inferiore alla base d'asta di € 50.000,00 (euro cinquantamila/00) + Iva è pari a :"]
["in cifre: €"]
["in lettere: euro"]
["comprensivo di imballaggio, consegna presso la sede aziendale indicata, garanzia e di tutti gli oneri necessari all’espletamento della fornitura"]
[]
["                            DATA",null,null,"NOMINATIVO FIRMATARIO"]
[]
[]
["N.B. La dichiarazione deve essere firmata digitalmente dal sottoscrittore."]